[Event "Late-Titled-Tuesday-Blitz-March-12-2024"]
[Site "Chess.com"]
[Date "2024.03.12"]
[Round "7"]
[White "Durarbayli"]
[Black "Alexei_Gubajdullin"]
[Result "0-1"]
[WhiteElo "2965"]
[BlackElo "2657"]
[TimeControl "180+1"]
[EndTime "15:16:53 PDT"]
[Termination "Alexei_Gubajdullin won on time"]

1. e4 {[%clk 0:03:00.9]} 1... g6 {[%clk 0:02:58.9]} 2. d4 {[%clk 0:03:00.4]}
2... Bg7 {[%clk 0:02:59]} 3. Nc3 {[%clk 0:03:01.1]} 3... d6 {[%clk 0:02:59]} 4.
Be3 {[%clk 0:02:59.3]} 4... a6 {[%clk 0:02:58.8]} 5. h4 {[%clk 0:02:59.7]} 5...
h6 {[%clk 0:02:58.5]} 6. h5 {[%clk 0:02:54.4]} 6... g5 {[%clk 0:02:57.4]} 7. f4
{[%clk 0:02:54.9]} 7... gxf4 {[%clk 0:02:57.4]} 8. Bxf4 {[%clk 0:02:55.8]} 8...
Nc6 {[%clk 0:02:54.8]} 9. Nf3 {[%clk 0:02:55.6]} 9... Nf6 {[%clk 0:02:54.1]} 10.
Qd2 {[%clk 0:02:54.6]} 10... Ng4 {[%clk 0:02:53.8]} 11. d5 {[%clk 0:02:31.7]}
11... Nce5 {[%clk 0:02:52.5]} 12. O-O-O {[%clk 0:02:30.4]} 12... c5 {[%clk
0:02:47.5]} 13. dxc6 {[%clk 0:02:29.8]} 13... bxc6 {[%clk 0:02:46.4]} 14. Nd4
{[%clk 0:02:20.2]} 14... Rb8 {[%clk 0:02:39.2]} 15. Rh3 {[%clk 0:02:16.7]} 15...
Qb6 {[%clk 0:02:30.1]} 16. b3 {[%clk 0:01:58.9]} 16... Qb4 {[%clk 0:02:26.5]}
17. Rg3 {[%clk 0:01:46.9]} 17... c5 {[%clk 0:02:20.2]} 18. Nf5 {[%clk
0:01:38.7]} 18... Bxf5 {[%clk 0:01:41.1]} 19. exf5 {[%clk 0:01:39]} 19... c4
{[%clk 0:01:27.1]} 20. Kb1 {[%clk 0:01:33.5]} 20... Nd3 {[%clk 0:01:19]} 21. Nd5
{[%clk 0:01:08.5]} 21... Qa3 {[%clk 0:01:17.2]} 22. c3 {[%clk 0:00:51.9]} 22...
Rxb3+ {[%clk 0:00:58.5]} 23. axb3 {[%clk 0:00:50.3]} 23... Qxb3+ {[%clk
0:00:58.4]} 24. Ka1 {[%clk 0:00:50.2]} 24... Qa4+ {[%clk 0:00:54.3]} 25. Kb1
{[%clk 0:00:46.5]} 25... Qb3+ {[%clk 0:00:50.7]} 26. Ka1 {[%clk 0:00:46.3]}
26... Qa4+ {[%clk 0:00:46]} 27. Kb1 {[%clk 0:00:46.1]} 27... O-O {[%clk
0:00:45.8]} 28. Rxd3 {[%clk 0:00:04.4]} 28... Rb8+ {[%clk 0:00:42.5]} 29. Qb2
{[%clk 0:00:04.6]} 29... Rxb2+ {[%clk 0:00:38]} 30. Kxb2 {[%clk 0:00:05.5]}
30... Qb3+ {[%clk 0:00:33.5]} 31. Kc1 {[%clk 0:00:05.5]} 31... cxd3 {[%clk
0:00:31.8]} 32. Rxd3 {[%clk 0:00:05.7]} 32... Nf2 {[%clk 0:00:29.6]} 33. Rg3
{[%clk 0:00:04.5]} 33... Qd1+ {[%clk 0:00:23.5]} 34. Kb2 {[%clk 0:00:04.2]}
34... Qxf1 {[%clk 0:00:23.4]} 35. f6 {[%clk 0:00:03.8]} 35... exf6 {[%clk
0:00:19.8]} 36. Bxh6 {[%clk 0:00:02]} 36... Qb5+ {[%clk 0:00:19.2]} 37. Kc1
{[%clk 0:00:02]} 37... Qxd5 {[%clk 0:00:18.9]} 38. Rxg7+ {[%clk 0:00:02.3]}
38... Kh8 {[%clk 0:00:19.1]} 39. Rg3 {[%clk 0:00:02.3]} 39... Ne4 {[%clk
0:00:17.8]} 40. Bg7+ {[%clk 0:00:01.8]} 40... Kh7 {[%clk 0:00:17.7]} 0-1

[Event "Late-Titled-Tuesday-Blitz-March-12-2024"]
[Site "Chess.com"]
[Date "2024.03.12"]
[Round "7"]
[White "dropstoneDP"]
[Black "Zq1"]
[Result "1-0"]
[WhiteElo "2972"]
[BlackElo "2615"]
[TimeControl "180+1"]
[EndTime "15:16:53 PDT"]
[Termination "dropstoneDP won by resignation"]

1. e4 {[%clk 0:02:59.3]} 1... c5 {[%clk 0:02:59.2]} 2. Nf3 {[%clk 0:02:59]} 2...
d6 {[%clk 0:02:57.1]} 3. Bb5+ {[%clk 0:02:57.1]} 3... Bd7 {[%clk 0:02:55.3]} 4.
Bxd7+ {[%clk 0:02:55.5]} 4... Qxd7 {[%clk 0:02:55.6]} 5. O-O {[%clk 0:02:55.3]}
5... Nc6 {[%clk 0:02:55.6]} 6. c3 {[%clk 0:02:54.9]} 6... Nf6 {[%clk 0:02:54.4]}
7. Re1 {[%clk 0:02:55.4]} 7... e6 {[%clk 0:02:53.8]} 8. d4 {[%clk 0:02:55.7]}
8... cxd4 {[%clk 0:02:53.9]} 9. cxd4 {[%clk 0:02:56.6]} 9... d5 {[%clk
0:02:54.4]} 10. e5 {[%clk 0:02:56.3]} 10... Ne4 {[%clk 0:02:54.3]} 11. a3 {[%clk
0:02:56.9]} 11... Be7 {[%clk 0:02:52.7]} 12. Nbd2 {[%clk 0:02:56.7]} 12... Nxd2
{[%clk 0:02:51.9]} 13. Bxd2 {[%clk 0:02:57.6]} 13... O-O {[%clk 0:02:51.4]} 14.
Re3 {[%clk 0:02:57.7]} 14... Rac8 {[%clk 0:02:50.2]} 15. h4 {[%clk 0:02:57.2]}
15... h6 {[%clk 0:02:48.6]} 16. Rd3 {[%clk 0:02:55.8]} 16... b6 {[%clk
0:02:48.1]} 17. Nh2 {[%clk 0:02:54.7]} 17... f5 {[%clk 0:02:40.8]} 18. exf6
{[%clk 0:02:48.2]} 18... Bxf6 {[%clk 0:02:41]} 19. Nf3 {[%clk 0:02:48.4]} 19...
Qf7 {[%clk 0:02:37.6]} 20. Qe2 {[%clk 0:02:47.6]} 20... Rce8 {[%clk 0:02:32.2]}
21. Re1 {[%clk 0:02:46.6]} 21... Qg6 {[%clk 0:02:29.7]} 22. Bc3 {[%clk
0:02:41.3]} 22... Qf5 {[%clk 0:02:28.7]} 23. Re3 {[%clk 0:02:40.8]} 23... Nd8
{[%clk 0:02:21]} 24. g3 {[%clk 0:02:35.5]} 24... Rf7 {[%clk 0:02:16.5]} 25. Nh2
{[%clk 0:02:33.8]} 25... a5 {[%clk 0:02:07.8]} 26. Ng4 {[%clk 0:02:28.1]} 26...
Ref8 {[%clk 0:02:00.7]} 27. Kg2 {[%clk 0:02:23]} 27... h5 {[%clk 0:01:58.9]} 28.
Nh2 {[%clk 0:02:04.9]} 28... Be7 {[%clk 0:01:48.6]} 29. Rf3 {[%clk 0:02:03.2]}
29... Qg6 {[%clk 0:01:47.6]} 30. Rxf7 {[%clk 0:01:57.3]} 30... Rxf7 {[%clk
0:01:47.1]} 31. Nf3 {[%clk 0:01:55.5]} 31... Qg4 {[%clk 0:01:36.2]} 32. Ne5
{[%clk 0:01:52.4]} 32... Qxe2 {[%clk 0:01:22.2]} 33. Rxe2 {[%clk 0:01:53.3]}
33... Rf5 {[%clk 0:01:13.7]} 34. Nd7 {[%clk 0:01:53.4]} 34... b5 {[%clk
0:00:56.1]} 35. Bxa5 {[%clk 0:01:51.2]} 35... Nc6 {[%clk 0:00:54.9]} 36. Rxe6
{[%clk 0:01:44.7]} 36... Nxa5 {[%clk 0:00:54.7]} 37. Rxe7 {[%clk 0:01:44.9]}
37... Nc4 {[%clk 0:00:54.7]} 38. Re8+ {[%clk 0:01:42.6]} 38... Kf7 {[%clk
0:00:50.3]} 39. Rf8+ {[%clk 0:01:41.7]} 39... Kg6 {[%clk 0:00:45.9]} 40. Ne5+
{[%clk 0:00:33.8]} 40... Nxe5 {[%clk 0:00:44.7]} 41. Rxf5 {[%clk 0:00:34.2]}
41... Kxf5 {[%clk 0:00:44.9]} 42. dxe5 {[%clk 0:00:34.7]} 42... Kxe5 {[%clk
0:00:45.5]} 43. b3 {[%clk 0:00:34.2]} 43... Kd4 {[%clk 0:00:43.6]} 44. a4 {[%clk
0:00:34.1]} 44... bxa4 {[%clk 0:00:38.5]} 45. bxa4 {[%clk 0:00:35]} 45... Kc3
{[%clk 0:00:16.8]} 46. a5 {[%clk 0:00:34.8]} 46... d4 {[%clk 0:00:17]} 47. a6
{[%clk 0:00:35.4]} 47... d3 {[%clk 0:00:17.7]} 48. a7 {[%clk 0:00:36]} 48... d2
{[%clk 0:00:18.4]} 49. a8=Q {[%clk 0:00:35.6]} 49... d1=Q {[%clk 0:00:19]} 50.
Qf3+ {[%clk 0:00:27.7]} 1-0

[Event "Late-Titled-Tuesday-Blitz-March-12-2024"]
[Site "Chess.com"]
[Date "2024.03.12"]
[Round "7"]
[White "Boundless_Strike"]
[Black "ameetghasi100"]
[Result "1-0"]
[WhiteElo "2619"]
[BlackElo "2787"]
[TimeControl "180+1"]
[EndTime "15:16:56 PDT"]
[Termination "Boundless_Strike won on time"]

1. d4 {[%clk 0:02:56.9]} 1... g6 {[%clk 0:02:59.8]} 2. h4 {[%clk 0:02:55.2]}
2... h6 {[%clk 0:02:59.1]} 3. h5 {[%clk 0:02:53.6]} 3... g5 {[%clk 0:02:59.3]}
4. Nc3 {[%clk 0:02:54]} 4... d6 {[%clk 0:02:59.4]} 5. e4 {[%clk 0:02:53.4]} 5...
Bg7 {[%clk 0:02:59.5]} 6. Be3 {[%clk 0:02:53.6]} 6... Nc6 {[%clk 0:02:59.2]} 7.
Qd2 {[%clk 0:02:53.6]} 7... Nf6 {[%clk 0:02:58.8]} 8. f3 {[%clk 0:02:53]} 8...
a6 {[%clk 0:02:57.8]} 9. O-O-O {[%clk 0:02:52.4]} 9... e6 {[%clk 0:02:58.2]} 10.
Nge2 {[%clk 0:02:44.9]} 10... b5 {[%clk 0:02:58.3]} 11. d5 {[%clk 0:02:44.4]}
11... Ne5 {[%clk 0:02:58.3]} 12. dxe6 {[%clk 0:02:43.7]} 12... Bxe6 {[%clk
0:02:57.2]} 13. Nd4 {[%clk 0:02:44.2]} 13... Qd7 {[%clk 0:02:56.6]} 14. Nxe6
{[%clk 0:02:43.2]} 14... fxe6 {[%clk 0:02:56.3]} 15. Kb1 {[%clk 0:02:40]} 15...
Qf7 {[%clk 0:02:46.7]} 16. Be2 {[%clk 0:01:20.6]} 16... Nxh5 {[%clk 0:02:37.5]}
17. Rxh5 {[%clk 0:01:19.4]} 17... Qxh5 {[%clk 0:02:38.4]} 18. f4 {[%clk
0:01:19.7]} 18... Ng4 {[%clk 0:02:38.9]} 19. f5 {[%clk 0:01:05.2]} 19... Qh4
{[%clk 0:02:21.6]} 20. fxe6 {[%clk 0:00:58.8]} 20... O-O {[%clk 0:02:17.9]} 21.
Nd5 {[%clk 0:00:56.6]} 21... Ne5 {[%clk 0:01:10.7]} 22. Nxc7 {[%clk 0:00:42.7]}
22... Qxe4 {[%clk 0:00:59.5]} 23. e7 {[%clk 0:00:33.1]} 23... Rfe8 {[%clk
0:00:50.2]} 24. Nxa8 {[%clk 0:00:30.6]} 24... Qxa8 {[%clk 0:00:44.3]} 25. Qxd6
{[%clk 0:00:29.9]} 25... Qe4 {[%clk 0:00:29.4]} 26. Qe6+ {[%clk 0:00:24.1]}
26... Kh8 {[%clk 0:00:23.4]} 27. Bh5 {[%clk 0:00:20.3]} 27... Qb4 {[%clk
0:00:16.6]} 28. Bxe8 {[%clk 0:00:16.1]} 28... Nc4 {[%clk 0:00:15.9]} 29. Bd4
{[%clk 0:00:10.3]} 29... Na3+ {[%clk 0:00:03.7]} 30. Kc1 {[%clk 0:00:10.5]}
30... Bxd4 {[%clk 0:00:03.1]} 31. Qxh6+ {[%clk 0:00:10.8]} 31... Kg8 {[%clk
0:00:03.4]} 32. Bf7+ {[%clk 0:00:09.1]} 32... Kxf7 {[%clk 0:00:03.4]} 33. Qf8+
{[%clk 0:00:09.2]} 33... Kg6 {[%clk 0:00:02.6]} 34. e8=Q+ {[%clk 0:00:09.6]} 1-0

[Event "Late-Titled-Tuesday-Blitz-March-12-2024"]
[Site "Chess.com"]
[Date "2024.03.12"]
[Round "7"]
[White "Rawnsdale"]
[Black "Meri-Arabidze"]
[Result "1-0"]
[WhiteElo "2535"]
[BlackElo "2686"]
[TimeControl "180+1"]
[EndTime "15:16:56 PDT"]
[Termination "Rawnsdale won on time"]

1. e4 {[%clk 0:03:00.9]} 1... e5 {[%clk 0:03:00]} 2. Nf3 {[%clk 0:03:01]} 2...
Nc6 {[%clk 0:03:00.2]} 3. Bb5 {[%clk 0:03:01.7]} 3... a6 {[%clk 0:03:00.7]} 4.
Ba4 {[%clk 0:03:02.1]} 4... Nf6 {[%clk 0:03:01]} 5. O-O {[%clk 0:03:02.7]} 5...
Be7 {[%clk 0:03:01.6]} 6. Re1 {[%clk 0:03:02.8]} 6... b5 {[%clk 0:03:02]} 7. Bb3
{[%clk 0:03:02.9]} 7... d6 {[%clk 0:03:02.8]} 8. h3 {[%clk 0:03:03.1]} 8... O-O
{[%clk 0:03:02.9]} 9. c3 {[%clk 0:03:03.3]} 9... Na5 {[%clk 0:03:03.1]} 10. Bc2
{[%clk 0:03:03.6]} 10... c5 {[%clk 0:03:03.9]} 11. d4 {[%clk 0:03:01.4]} 11...
Qc7 {[%clk 0:03:04.4]} 12. Nbd2 {[%clk 0:03:00.8]} 12... cxd4 {[%clk 0:03:04.4]}
13. cxd4 {[%clk 0:03:01.1]} 13... Nc6 {[%clk 0:03:03.6]} 14. Nf1 {[%clk
0:03:00.5]} 14... Bd7 {[%clk 0:02:54.6]} 15. Be3 {[%clk 0:02:55.5]} 15... Nb4
{[%clk 0:02:52.2]} 16. Bb1 {[%clk 0:02:51.7]} 16... a5 {[%clk 0:02:49.8]} 17. a3
{[%clk 0:02:48.5]} 17... Na6 {[%clk 0:02:49.9]} 18. Bd3 {[%clk 0:02:47]} 18...
Rac8 {[%clk 0:02:34.6]} 19. Rc1 {[%clk 0:02:46.3]} 19... Qb8 {[%clk 0:02:35]}
20. Ng3 {[%clk 0:02:46.3]} 20... Rfe8 {[%clk 0:02:32.6]} 21. Qd2 {[%clk
0:02:44.6]} 21... a4 {[%clk 0:02:28.6]} 22. Qa5 {[%clk 0:02:42]} 22... exd4
{[%clk 0:02:15.8]} 23. Bxd4 {[%clk 0:02:36.1]} 23... Nc5 {[%clk 0:02:15.2]} 24.
Bxc5 {[%clk 0:02:31.3]} 24... Rxc5 {[%clk 0:02:08.5]} 25. Rxc5 {[%clk
0:02:26.7]} 25... dxc5 {[%clk 0:02:09.4]} 26. e5 {[%clk 0:02:26.1]} 26... Nd5
{[%clk 0:02:07.6]} 27. Bf5 {[%clk 0:02:25.5]} 27... Bc6 {[%clk 0:02:02.6]} 28.
Be4 {[%clk 0:01:41.6]} 28... g6 {[%clk 0:01:41.6]} 29. Rd1 {[%clk 0:01:20.8]}
29... Rd8 {[%clk 0:01:41.5]} 30. Qe1 {[%clk 0:01:20.4]} 30... Qc7 {[%clk
0:01:35]} 31. e6 {[%clk 0:01:17.9]} 31... f6 {[%clk 0:01:22.6]} 32. h4 {[%clk
0:01:09.2]} 32... Qf4 {[%clk 0:00:49.5]} 33. h5 {[%clk 0:01:05.3]} 33... f5
{[%clk 0:00:49.6]} 34. Bxd5 {[%clk 0:00:57.2]} 34... Rxd5 {[%clk 0:00:44.8]} 35.
Rxd5 {[%clk 0:00:46.4]} 35... Bxd5 {[%clk 0:00:45.7]} 36. Qe2 {[%clk 0:00:39.9]}
36... c4 {[%clk 0:00:26.7]} 37. Ne5 {[%clk 0:00:25.2]} 37... Kg7 {[%clk
0:00:22.3]} 38. Nd7 {[%clk 0:00:22.5]} 38... Qc1+ {[%clk 0:00:18.3]} 39. Kh2
{[%clk 0:00:22.3]} 39... Qf4 {[%clk 0:00:18]} 40. Nb6 {[%clk 0:00:20.9]} 40...
Be4 {[%clk 0:00:15.8]} 41. Nd7 {[%clk 0:00:18.4]} 41... gxh5 {[%clk 0:00:14.4]}
42. Kg1 {[%clk 0:00:17.1]} 42... h4 {[%clk 0:00:14.8]} 43. Nh5+ {[%clk
0:00:17.4]} 1-0

[Event "Late-Titled-Tuesday-Blitz-March-12-2024"]
[Site "Chess.com"]
[Date "2024.03.12"]
[Round "7"]
[White "szachmistrz2500"]
[Black "TimGrutter03"]
[Result "1-0"]
[WhiteElo "2480"]
[BlackElo "2568"]
[TimeControl "180+1"]
[EndTime "15:16:56 PDT"]
[Termination "szachmistrz2500 won on time"]

1. e4 {[%clk 0:03:00.9]} 1... g6 {[%clk 0:02:54.9]} 2. d4 {[%clk 0:02:59.4]}
2... Bg7 {[%clk 0:02:55.8]} 3. c4 {[%clk 0:02:58.8]} 3... d6 {[%clk 0:02:56.3]}
4. Nc3 {[%clk 0:02:58.5]} 4... Nc6 {[%clk 0:02:56.9]} 5. Be3 {[%clk 0:02:54.9]}
5... e5 {[%clk 0:02:55.5]} 6. Nge2 {[%clk 0:02:50.4]} 6... f5 {[%clk 0:02:53.3]}
7. exf5 {[%clk 0:02:46.9]} 7... gxf5 {[%clk 0:02:53]} 8. d5 {[%clk 0:02:42]}
8... Nce7 {[%clk 0:02:52.8]} 9. f4 {[%clk 0:02:42]} 9... Ng6 {[%clk 0:02:48.6]}
10. fxe5 {[%clk 0:02:40.1]} 10... dxe5 {[%clk 0:02:49.5]} 11. Qd2 {[%clk
0:02:35.3]} 11... Qh4+ {[%clk 0:02:45.3]} 12. g3 {[%clk 0:02:22.7]} 12... Qxc4
{[%clk 0:02:43]} 13. O-O-O {[%clk 0:02:21.7]} 13... Qb4 {[%clk 0:02:31.8]} 14.
h4 {[%clk 0:02:12.8]} 14... h5 {[%clk 0:02:24.1]} 15. Kb1 {[%clk 0:01:53.3]}
15... Nf6 {[%clk 0:02:16.4]} 16. Nc1 {[%clk 0:01:50.6]} 16... Ne4 {[%clk
0:02:06.3]} 17. Nxe4 {[%clk 0:01:33.7]} 17... Qxe4+ {[%clk 0:02:07.2]} 18. Bd3
{[%clk 0:01:33.6]} 18... Qxd5 {[%clk 0:02:07]} 19. Qc2 {[%clk 0:01:31.1]} 19...
Qf7 {[%clk 0:01:54.3]} 20. Rhf1 {[%clk 0:01:30.1]} 20... O-O {[%clk 0:01:51.8]}
21. Bc5 {[%clk 0:01:25.2]} 21... Rd8 {[%clk 0:01:33.8]} 22. Bc4 {[%clk 0:01:25]}
22... Be6 {[%clk 0:01:32.5]} 23. Rxf5 {[%clk 0:01:24.6]} 23... Qe8 {[%clk
0:01:13.2]} 24. Rxd8 {[%clk 0:01:22.4]} 24... Rxd8 {[%clk 0:01:12.6]} 25. Rg5
{[%clk 0:01:19.7]} 25... Bxc4 {[%clk 0:00:52.4]} 26. Qxc4+ {[%clk 0:01:09.5]}
26... Qf7 {[%clk 0:00:52.4]} 27. Qe4 {[%clk 0:01:05.7]} 27... Nf8 {[%clk
0:00:32]} 28. Bxf8 {[%clk 0:00:52.3]} 28... Kxf8 {[%clk 0:00:18.2]} 29. Qxb7
{[%clk 0:00:50.3]} 29... Bh6 {[%clk 0:00:13.2]} 30. Qb4+ {[%clk 0:00:43.5]}
30... Rd6 {[%clk 0:00:09.7]} 31. Rxe5 {[%clk 0:00:42.9]} 31... Qg6+ {[%clk
0:00:07.3]} 32. Qe4 {[%clk 0:00:41]} 32... Qxe4+ {[%clk 0:00:04]} 33. Rxe4
{[%clk 0:00:41.9]} 33... Rd1 {[%clk 0:00:04.4]} 34. Rc4 {[%clk 0:00:41.9]} 34...
Rg1 {[%clk 0:00:03.4]} 35. Rxc7 {[%clk 0:00:35.9]} 35... Rxg3 {[%clk 0:00:03.9]}
36. Rh7 {[%clk 0:00:26.8]} 36... Be3 {[%clk 0:00:02.4]} 37. Ne2 {[%clk
0:00:20.9]} 37... Rg2 {[%clk 0:00:02.4]} 38. Nc3 {[%clk 0:00:20.3]} 38... Rg1+
{[%clk 0:00:02.1]} 39. Kc2 {[%clk 0:00:20.1]} 39... Rg2+ {[%clk 0:00:02.9]} 40.
Kb3 {[%clk 0:00:20.6]} 40... Bc1 {[%clk 0:00:02.9]} 41. Na4 {[%clk 0:00:19.8]}
41... Rg3+ {[%clk 0:00:02.5]} 42. Nc3 {[%clk 0:00:18.9]} 42... Rg2 {[%clk
0:00:02.1]} 43. Nd1 {[%clk 0:00:19.3]} 1-0

[Event "Late-Titled-Tuesday-Blitz-March-12-2024"]
[Site "Chess.com"]
[Date "2024.03.12"]
[Round "7"]
[White "Polish_fighter3000"]
[Black "ChristopherYoo"]
[Result "1/2-1/2"]
[WhiteElo "3146"]
[BlackElo "3014"]
[TimeControl "180+1"]
[EndTime "15:17:00 PDT"]
[Termination "Game drawn by repetition"]

1. e4 {[%clk 0:03:00.9]} 1... Nc6 {[%clk 0:02:56.5]} 2. d4 {[%clk 0:02:59.7]}
2... d6 {[%clk 0:02:55.2]} 3. Nf3 {[%clk 0:02:56.7]} 3... Nf6 {[%clk 0:02:55.1]}
4. c3 {[%clk 0:02:39.5]} 4... e5 {[%clk 0:02:53.2]} 5. Bd3 {[%clk 0:02:35.7]}
5... Bg4 {[%clk 0:02:45]} 6. d5 {[%clk 0:02:20.9]} 6... Nb8 {[%clk 0:02:43.4]}
7. h3 {[%clk 0:02:18]} 7... Bxf3 {[%clk 0:02:37.6]} 8. Qxf3 {[%clk 0:02:18.9]}
8... Nbd7 {[%clk 0:02:29.5]} 9. c4 {[%clk 0:02:19]} 9... g6 {[%clk 0:02:24.1]}
10. Nc3 {[%clk 0:02:16.2]} 10... h5 {[%clk 0:02:20]} 11. Bc2 {[%clk 0:01:56.8]}
11... Bh6 {[%clk 0:02:11.7]} 12. Bxh6 {[%clk 0:01:56.2]} 12... Rxh6 {[%clk
0:02:12.6]} 13. Qe3 {[%clk 0:01:53.6]} 13... Rh8 {[%clk 0:02:11.7]} 14. a3
{[%clk 0:01:53.4]} 14... Kf8 {[%clk 0:02:07]} 15. b4 {[%clk 0:01:52.8]} 15... a5
{[%clk 0:02:06.2]} 16. O-O {[%clk 0:01:52.2]} 16... Kg7 {[%clk 0:02:05.3]} 17.
c5 {[%clk 0:01:46.7]} 17... axb4 {[%clk 0:02:03.5]} 18. axb4 {[%clk 0:01:47.6]}
18... Qe7 {[%clk 0:02:03.7]} 19. c6 {[%clk 0:01:38]} 19... bxc6 {[%clk
0:02:03.2]} 20. dxc6 {[%clk 0:01:38.9]} 20... Nb6 {[%clk 0:02:02.9]} 21. Bb3
{[%clk 0:01:28]} 21... Rhb8 {[%clk 0:01:55.9]} 22. Ra5 {[%clk 0:01:23.9]} 22...
Nc8 {[%clk 0:01:48.7]} 23. Bc4 {[%clk 0:01:07.2]} 23... Qd8 {[%clk 0:01:11.5]}
24. Rfa1 {[%clk 0:00:59.4]} 24... Ne7 {[%clk 0:01:11.1]} 25. b5 {[%clk
0:00:57.5]} 25... Rxa5 {[%clk 0:01:10.6]} 26. Rxa5 {[%clk 0:00:58.4]} 26... d5
{[%clk 0:01:09.7]} 27. Nxd5 {[%clk 0:00:24.6]} 27... Nfxd5 {[%clk 0:01:08.3]}
28. exd5 {[%clk 0:00:25.5]} 28... Qd6 {[%clk 0:01:08.2]} 29. Qa7 {[%clk
0:00:20.5]} 29... Rb6 {[%clk 0:00:12.7]} 30. Ra6 {[%clk 0:00:20.1]} 30... Nc8
{[%clk 0:00:10.5]} 31. Qa8 {[%clk 0:00:20.3]} 31... Rxa6 {[%clk 0:00:10.8]} 32.
bxa6 {[%clk 0:00:21.1]} 32... Nb6 {[%clk 0:00:10.8]} 33. Qb7 {[%clk 0:00:18.6]}
33... Nxc4 {[%clk 0:00:07.7]} 34. a7 {[%clk 0:00:18.6]} 34... Nb6 {[%clk
0:00:06.9]} 35. Qxb6 {[%clk 0:00:18.7]} 35... cxb6 {[%clk 0:00:07.8]} 36. a8=Q
{[%clk 0:00:18.8]} 36... Qxd5 {[%clk 0:00:08.3]} 37. Qc8 {[%clk 0:00:11.6]}
37... Qd1+ {[%clk 0:00:08.3]} 38. Kh2 {[%clk 0:00:11.9]} 38... Qd4 {[%clk
0:00:08.1]} 39. Qd7 {[%clk 0:00:03.7]} 39... Qf4+ {[%clk 0:00:07.4]} 40. Kg1
{[%clk 0:00:04.3]} 40... Qc1+ {[%clk 0:00:07.6]} 41. Kh2 {[%clk 0:00:05]} 41...
Qf4+ {[%clk 0:00:07.6]} 42. Kg1 {[%clk 0:00:05.1]} 42... Qc1+ {[%clk 0:00:08.2]}
43. Kh2 {[%clk 0:00:05.6]} 43... Qf4+ {[%clk 0:00:08.6]} 1/2-1/2

[Event "Late-Titled-Tuesday-Blitz-March-12-2024"]
[Site "Chess.com"]
[Date "2024.03.12"]
[Round "7"]
[White "mbojan"]
[Black "Lennis93"]
[Result "0-1"]
[WhiteElo "2876"]
[BlackElo "2712"]
[TimeControl "180+1"]
[EndTime "15:17:01 PDT"]
[Termination "Lennis93 won on time"]

1. a3 {[%clk 0:03:00.9]} 1... Nf6 {[%clk 0:02:49.8]} 2. h3 {[%clk 0:02:59.3]}
2... d5 {[%clk 0:02:49.7]} 3. e3 {[%clk 0:02:57.3]} 3... e5 {[%clk 0:02:49.5]}
4. d4 {[%clk 0:02:56.9]} 4... e4 {[%clk 0:02:48.8]} 5. c4 {[%clk 0:02:56.9]}
5... c6 {[%clk 0:02:49.4]} 6. Bd2 {[%clk 0:02:57.1]} 6... a6 {[%clk 0:02:47.8]}
7. cxd5 {[%clk 0:02:56]} 7... cxd5 {[%clk 0:02:47.4]} 8. Bb4 {[%clk 0:02:54.3]}
8... Bxb4+ {[%clk 0:02:44.8]} 9. axb4 {[%clk 0:02:55.2]} 9... O-O {[%clk
0:02:41.2]} 10. Nc3 {[%clk 0:02:55.5]} 10... Qb6 {[%clk 0:02:36.2]} 11. Qb3
{[%clk 0:02:52.3]} 11... Nc6 {[%clk 0:02:35.2]} 12. b5 {[%clk 0:02:51.6]} 12...
Be6 {[%clk 0:02:31.8]} 13. Rb1 {[%clk 0:02:12.9]} 13... axb5 {[%clk 0:02:30.8]}
14. Qxb5 {[%clk 0:02:13.2]} 14... Qc7 {[%clk 0:02:25.6]} 15. Nge2 {[%clk
0:02:13]} 15... Ra5 {[%clk 0:02:21.6]} 16. Qb3 {[%clk 0:02:12.8]} 16... Rfa8
{[%clk 0:02:13]} 17. Nc1 {[%clk 0:02:12.9]} 17... Bf5 {[%clk 0:01:43.2]} 18. Qd1
{[%clk 0:01:58.7]} 18... Ra1 {[%clk 0:01:10.2]} 19. Nb3 {[%clk 0:01:57.6]} 19...
Rxb1 {[%clk 0:01:09.5]} 20. Qxb1 {[%clk 0:01:58.5]} 20... Nb4 {[%clk 0:00:41]}
21. Be2 {[%clk 0:01:52]} 21... Qc8 {[%clk 0:00:13.7]} 22. Kd2 {[%clk 0:01:30.8]}
22... h5 {[%clk 0:00:13]} 23. Rc1 {[%clk 0:01:15.7]} 23... Qd8 {[%clk
0:00:12.9]} 24. Na1 {[%clk 0:00:58]} 24... Bg6 {[%clk 0:00:11.9]} 25. Nc2 {[%clk
0:00:57.8]} 25... Nd3 {[%clk 0:00:12.2]} 26. Bxd3 {[%clk 0:00:57.6]} 26... exd3
{[%clk 0:00:13.1]} 27. Nb4 {[%clk 0:00:20.6]} 27... Ne4+ {[%clk 0:00:12.8]} 28.
Nxe4 {[%clk 0:00:21.2]} 28... dxe4 {[%clk 0:00:13.7]} 29. Rc5 {[%clk 0:00:21.6]}
29... Qh4 {[%clk 0:00:13.2]} 30. Qe1 {[%clk 0:00:17.9]} 30... Ra4 {[%clk
0:00:09.1]} 31. Nd5 {[%clk 0:00:15.3]} 31... Kh7 {[%clk 0:00:08.2]} 32. Nc3
{[%clk 0:00:14.8]} 32... Rb4 {[%clk 0:00:07.3]} 33. Kc1 {[%clk 0:00:10.7]} 33...
Qd8 {[%clk 0:00:05.5]} 34. Qd2 {[%clk 0:00:07.1]} 34... Qa8 {[%clk 0:00:05.4]}
35. f3 {[%clk 0:00:06.2]} 35... Qa1+ {[%clk 0:00:04.9]} 36. Nb1 {[%clk
0:00:06.8]} 36... exf3 {[%clk 0:00:05]} 37. gxf3 {[%clk 0:00:07.7]} 37... Rxb2
{[%clk 0:00:01.9]} 38. Qxb2 {[%clk 0:00:07.4]} 38... d2+ {[%clk 0:00:02.4]} 0-1